fUST/lending_fUST_20240530
["ID","MTS","AMOUNT","RATE_DAILY","PERIOD"]
[328176041,1717002645914,-151.0,0.0003,2]
[328176042,1717002645923,-215.951299,0.0003,2]
[328176043,1717002645932,-151.0,0.0003,2]
[328176044,1717002645942,-180.964424,0.0003,2]
[328176045,1717002645951,-151.0,0.0003,2]
[328176046,1717002645960,-151.0,0.0003,2]
[328176047,1717002645970,-1682.971842,0.0003,2]
[328176048,1717002645979,-1282.0,0.0003,5]
[328176049,1717002645988,-1682.971842,0.0003,2]
[328176050,1717002645997,-151.08854,0.0003,2]
[328176051,1717002646006,-151.08854,0.0003,2]
[328176052,1717002646016,-386.947126,0.0003,2]
[328176053,1717002646025,-386.947126,0.0003,2]
[328176054,1717002646034,-982.209705,0.0003,2]
[328176055,1717002646043,-982.209705,0.0003,2]
[328176056,1717002646053,-151.0,0.0003,2]
[328176057,1717002646062,-1000.0,0.0003,2]
[328176058,1717002646073,-1138.614795,0.0003,2]
[328176059,1717002646082,-1138.614795,0.0003,2]
[328176060,1717002646091,-150.0,0.00030019,2]
[328176061,1717002646101,-489.34556427,0.00030036,7]
[328176062,1717002646110,-4229.78307947,0.00030063,2]
[328176063,1717002646120,-153.0,0.00030082,2]
[328176064,1717002646129,-153.0,0.00030082,2]
[328176065,1717002646138,-153.0,0.00030082,2]
[328176066,1717002646148,-153.0,0.00030082,2]
[328176067,1717002646157,-153.0,0.00030082,2]
[328176068,1717002646166,-342.6372315,0.00030082,2]
[328176069,1717002646175,-10787.62798766,0.00030134,4]
[328176070,1717002646184,-151.0,0.00030134,2]
[328176071,1717002646193,-233.514913,0.00030134,2]
[328176072,1717002646202,-233.514913,0.00030134,2]
[328176073,1717002646211,-151.0,0.00030134,2]
[328176074,1717002646220,-151.0,0.00030134,2]
[328176075,1717002646229,-859.7179351,0.00030135,4]
[328176076,1717002646239,-500.0,0.00030136,4]
[328176077,1717002646247,-151.0,0.00030136,2]
[328176078,1717002646256,-500.0,0.00030136,2]
[328176079,1717002646271,-500.0,0.00030136,2]
[328176080,1717002646280,-153.84261877,0.00030136,2]
[328176081,1717002646289,-167.98109953,0.00030136,2]
[328176082,1717002646298,-748.47,0.00030136,2]
[328176083,1717002646311,-1000.0,0.00030136,2]
[328176084,1717002646320,-500.0,0.00030136,2]
[328176085,1717002646328,-500.0,0.00030136,4]
[328176086,1717002646339,-500.0,0.00030136,4]
[328176087,1717002646349,-500.0,0.00030136,4]
[328176088,1717002646358,-500.0,0.00030136,4]
[328176089,1717002646367,-500.0,0.00030136,4]
[328176090,1717002646376,-153.40679595,0.00030136,2]
[328176091,1717002646386,-500.0,0.00030136,2]
[328176092,1717002646395,-500.0,0.00030136,4]
[328176093,1717002646404,-500.0,0.00030136,4]
[328176094,1717002646414,-500.0,0.00030136,4]
[328176095,1717002646424,-500.0,0.00030136,4]
[328176096,1717002646434,-500.0,0.00030136,4]
[328176097,1717002646443,-500.0,0.00030136,4]
[328176098,1717002646452,-500.0,0.00030136,4]
[328176099,1717002646460,-500.0,0.00030136,4]
[328176100,1717002646469,-500.0,0.00030136,4]
[328176101,1717002646478,-500.0,0.00030136,4]
[328176102,1717002646488,-151.0,0.00030219,2]
[328176103,1717002646497,-151.0,0.00030219,2]
[328176104,1717002646506,-577.57308,0.00030219,2]
[328176105,1717002646516,-577.57308,0.00030219,2]
[328176106,1717002646525,-155.605394,0.00030219,2]
[328176107,1717002646534,-155.605394,0.00030219,2]
[328176108,1717002646544,-659.841471,0.00030219,2]
[328176109,1717002646553,-659.841471,0.00030219,2]
[328176110,1717002646562,-489.34556427,0.00030293,7]
[328176111,1717002646571,-572.208543,0.0003031,2]
[328176112,1717002646580,-500.0,0.0003033,4]
[328176113,1717002646590,-151.547111,0.00030331,2]
[328176114,1717002646600,-151.0,0.00030331,2]
[328176115,1717002646608,-151.0,0.00030331,2]
[328176116,1717002646618,-151.0,0.00030331,2]
[328176117,1717002646626,-166.860849,0.00030331,2]
[328176118,1717002646636,-276.727778,0.00030331,2]
[328176119,1717002646645,-166.860849,0.00030331,2]
[328176120,1717002646654,-276.727778,0.00030331,2]
[328176121,1717002646663,-200.57374069,0.00030374,4]
[328176122,1717002646672,-309.61283914,0.00030375,4]
[328176123,1717002646681,-1686.51198135,0.00030375,4]
[328176124,1717002646691,-274.85373023,0.00030376,4]
[328176125,1717002646701,-190.14627615,0.00030376,2]
[328176126,1717002646710,-172.95266151,0.00030376,4]
[328176127,1717002646719,-760.94478308,0.00030376,4]
[328176128,1717002646728,-528.87440492,0.00030376,4]
[328176129,1717002646737,-899.29363884,0.00030376,2]
[328176130,1717002646746,-523.11398542,0.00030376,4]
[328176131,1717002646755,-719.3013428,0.00030376,4]
[328176132,1717002646764,-155.282632,0.00030376,4]
[328176133,1717002646773,-2275.71358268,0.00030376,120]
[328176134,1717002646782,-316.52805142,0.00030376,4]
[328176135,1717002646792,-162.67514031,0.00030376,2]
[328176136,1717002646802,-155.04341216,0.00030376,4]
[328176137,1717002646811,-943.54638398,0.00030376,4]
[328176138,1717002646821,-294.87976936,0.00030376,4]
[328176139,1717002646830,-298.33501577,0.00030376,4]
[328176140,1717002646839,-261.96069104,0.00030376,4]
[328176141,1717002646848,-156.02729105,0.00030376,4]
[328176142,1717002646858,-151.0,0.00030376,2]
[328176143,1717002646867,-151.0,0.00030376,2]
[328176144,1717002646876,-253.908063,0.00030376,2]
[328176145,1717002646886,-365.530466,0.00030376,2]
[328176146,1717002646894,-253.908063,0.00030376,2]
[328176147,1717002646904,-365.530466,0.00030376,2]
[328176148,1717002647003,-1959.86597,0.00030376,2]
[328176149,1717002647014,-1959.86597,0.00030376,2]
[328176150,1717002647024,-792.724988,0.00030376,2]
[328176151,1717002647034,-792.724988,0.00030376,2]
[328176152,1717002647043,-157.164204,0.00030376,2]
[328176153,1717002647055,-151.0,0.00030376,2]
[328176154,1717002647064,-151.0,0.00030376,2]
[328176155,1717002647072,-151.0,0.00030376,2]
[328176156,1717002647081,-151.0,0.00030376,2]
[328176157,1717002647090,-151.0,0.00030376,2]
[328176158,1717002647099,-1682.971842,0.00030376,2]
[328176159,1717002647108,-1682.971842,0.00030376,2]
[328176160,1717002647117,-151.08854,0.00030376,2]
[328176161,1717002647126,-151.08854,0.00030376,2]
[328176162,1717002647135,-386.947126,0.00030376,2]
[328176163,1717002647144,-386.947126,0.00030376,2]
[328176164,1717002647153,-982.209705,0.00030376,2]
[328176165,1717002647162,-982.209705,0.00030376,2]
[328176166,1717002647171,-151.0,0.00030376,2]
[328176167,1717002647180,-1138.614795,0.00030376,2]
[328176168,1717002647189,-1138.614795,0.00030376,2]
[328176169,1717002647199,-1899.84369747,0.00030377,4]
[328176170,1717002647208,-1122.50051334,0.00030377,4]
[328176171,1717002647217,-151.0,0.00030377,2]
[328176172,1717002647226,-477.250238,0.00030377,2]
[328176173,1717002647235,-477.250238,0.00030377,2]
[328176174,1717002647244,-500.0,0.00030377,4]
[328176175,1717002647253,-223.96,0.00030377,4]
[328176176,1717002647265,-619.94568863,0.00030378,2]
[328176177,1717002647276,-156.66103021,0.00030378,4]
[328176178,1717002647285,-151.0,0.00030378,2]
[328176179,1717002647294,-151.0,0.00030378,2]
[328176180,1717002647304,-151.0,0.00030378,2]
[328176181,1717002647314,-233.514913,0.00030378,2]
[328176182,1717002647325,-233.514913,0.00030378,2]
[328176183,1717002647334,-151.0,0.00030378,2]
[328176184,1717002647343,-477.250238,0.00030378,2]
[328176185,1717002647354,-477.250238,0.00030378,2]
[328176186,1717002647363,-151.0,0.00030378,2]
[328176187,1717002647372,-151.0,0.00030378,2]
[328176188,1717002647380,-151.0,0.00030378,2]
[328176189,1717002647390,-166.860849,0.00030378,2]
[328176190,1717002647399,-276.727778,0.00030378,2]
[328176191,1717002647408,-166.860849,0.00030378,2]
[328176192,1717002647417,-276.727778,0.00030378,2]
[328176193,1717002647425,-151.0,0.00030378,2]
[328176194,1717002647435,-151.0,0.00030378,2]
[328176195,1717002647445,-151.0,0.00030378,2]
[328176196,1717002647454,-151.0,0.00030378,2]
[328176197,1717002647463,-577.57308,0.00030378,2]
[328176198,1717002647472,-577.57308,0.00030378,2]
[328176199,1717002647481,-155.605394,0.00030378,2]
[328176200,1717002647490,-253.908063,0.00030378,2]
[328176201,1717002647499,-155.605394,0.00030378,2]
[328176202,1717002647508,-659.841471,0.00030378,2]
[328176203,1717002647517,-365.530466,0.00030378,2]
[328176204,1717002647526,-253.908063,0.00030378,2]
[328176205,1717002647536,-365.530466,0.00030378,2]
[328176206,1717002647545,-659.841471,0.00030378,2]
[328176207,1717002647555,-1959.86597,0.00030378,2]
[328176208,1717002647564,-1959.86597,0.00030378,2]
[328176209,1717002647574,-792.724988,0.00030378,2]
[328176210,1717002647583,-792.724988,0.00030378,2]
[328176211,1717002647591,-263.102017,0.00030378,2]
[328176212,1717002647601,-151.0,0.00030378,2]
[328176213,1717002647610,-151.0,0.00030378,2]
[328176214,1717002647619,-151.0,0.00030378,2]
[328176215,1717002647628,-151.0,0.00030378,2]
[328176216,1717002647637,-151.0,0.00030378,2]
[328176217,1717002647646,-151.0,0.00030378,2]
[328176218,1717002647655,-1682.971842,0.00030378,2]
[328176219,1717002647664,-1682.971842,0.00030378,2]
[328176220,1717002647673,-151.08854,0.00030378,2]
[328176221,1717002647682,-151.08854,0.00030378,2]
[328176222,1717002647691,-9016.7083863,0.00030398,4]
[328176223,1717002647700,-302.0,0.00030399,4]
[328176224,1717002647709,-156.33757926,0.00030407,4]
[328176225,1717002647719,-184.42856408,0.00030408,4]
[328176226,1717002647729,-500.0,0.0003041,4]
[328176227,1717002647738,-500.0,0.0003041,2]
[328176228,1717002647748,-500.0,0.0003041,2]
[328176229,1717002647757,-748.47,0.0003041,2]
[328176230,1717002647766,-1000.0,0.0003041,2]
[328176231,1717002647776,-500.0,0.0003041,2]
[328176232,1717002647785,-500.0,0.0003041,4]
[328176233,1717002647794,-500.0,0.0003041,4]
[328176234,1717002647805,-330.2198376,0.0003041,4]
[328176235,1717002647814,-386.947126,0.0003041,2]
[328176236,1717002647823,-500.0,0.0003041,4]
[328176237,1717002647833,-386.947126,0.0003041,2]
[328176238,1717002647841,-982.209705,0.0003041,2]
[328176239,1717002647850,-500.0,0.0003041,4]
[328176240,1717002647863,-982.209705,0.0003041,2]
[328176241,1717002647873,-151.0,0.0003041,2]
[328176242,1717002647882,-1138.614795,0.0003041,2]
[328176243,1717002647891,-1138.614795,0.0003041,2]
[328176244,1717002647900,-500.0,0.0003041,2]
[328176245,1717002647909,-489.34556427,0.00030563,7]
[328176246,1717002647918,-300.9205413,0.0003063,7]
[328176247,1717002647927,-151.0,0.00030664,7]
[328176248,1717002647936,-151.0,0.00030664,7]
[328176249,1717002647946,-500.0,0.00030684,4]
[328176250,1717002647956,-500.0,0.00030684,2]
[328176251,1717002647965,-500.0,0.00030684,2]
[328176252,1717002647974,-748.47,0.00030684,2]
[328176253,1717002647984,-1000.0,0.00030684,2]
[328176254,1717002647993,-500.0,0.00030684,2]
[328176255,1717002648002,-500.0,0.00030684,4]
[328176256,1717002648011,-500.0,0.00030684,4]
[328176257,1717002648020,-500.0,0.00030684,4]
[328176258,1717002648029,-500.0,0.00030684,4]
[328176259,1717002648038,-206.13291789,0.00030684,2]
[328176260,1717002648047,-489.34556427,0.00030746,7]
[328176261,1717002648056,-300.9205413,0.00030897,7]
[328176262,1717002648065,-489.34556427,0.00030904,7]
[328176263,1717002648074,-500.0,0.00030958,4]
[328176264,1717002648082,-512.95080942,0.00030958,2]
[328176265,1717002648091,-500.0,0.00030958,2]
[328176266,1717002648102,-748.47,0.00030958,2]
[328176267,1717002648115,-1000.0,0.00030958,2]
[328176268,1717002648127,-500.0,0.00030958,2]
[328176269,1717002648140,-500.0,0.00030958,4]
[328176270,1717002648152,-500.0,0.00030958,4]
[328176271,1717002648164,-500.0,0.00030958,4]
[328176272,1717002648174,-500.0,0.00030958,4]
[328176273,1717002648184,-319.0,0.00031,4]
[328176274,1717002648196,-300.9205413,0.00031059,7]
[328176275,1717002648208,-153.95,0.000311,3]
[328176276,1717002648219,-153.95,0.000311,3]
[328176277,1717002648230,-151.0,0.000311,2]
[328176278,1717002648242,-191.956634,0.000311,2]
[328176279,1717002648254,-151.0,0.000311,2]
[328176280,1717002648265,-577.57308,0.000311,2]
[328176281,1717002648281,-577.57308,0.000311,2]
[328176282,1717002648293,-155.605394,0.000311,2]
[328176283,1717002648306,-253.908063,0.000311,2]
[328176284,1717002648321,-155.605394,0.000311,2]
[328176285,1717002648333,-659.841471,0.000311,2]
[328176286,1717002648344,-365.530466,0.000311,2]
[328176287,1717002648358,-253.908063,0.000311,2]
[328176288,1717002648368,-365.530466,0.000311,2]
[328176289,1717002648379,-659.841471,0.000311,2]
[328176290,1717002648390,-1959.86597,0.000311,2]
[328176291,1717002648402,-1959.86597,0.000311,2]
[328176292,1717002648414,-792.724988,0.000311,2]
[328176293,1717002648425,-792.724988,0.000311,2]
[328176294,1717002648437,-151.0,0.000311,2]
[328176295,1717002648448,-151.0,0.000311,2]
[328176296,1717002648458,-151.0,0.000311,2]
[328176297,1717002648467,-151.0,0.000311,2]
[328176298,1717002648478,-151.0,0.000311,2]
[328176299,1717002648489,-151.0,0.000311,2]
[328176300,1717002648499,-1682.971842,0.000311,2]
[328176301,1717002648511,-1682.971842,0.000311,2]
[328176302,1717002648522,-151.08854,0.000311,2]
[328176303,1717002648534,-151.08854,0.000311,2]
[328176304,1717002648548,-500.0,0.00031232,4]
[328176305,1717002648560,-500.0,0.00031232,2]
[328176306,1717002648572,-748.47,0.00031232,2]
[328176307,1717002648584,-1000.0,0.00031232,2]
[328176308,1717002648595,-500.0,0.00031232,2]
[328176309,1717002648605,-300.9205413,0.00031232,7]
[328176310,1717002648615,-500.0,0.00031232,4]
[328176311,1717002648625,-500.0,0.00031232,4]
[328176312,1717002648635,-500.0,0.00031232,4]
[328176313,1717002648645,-500.0,0.00031232,4]
[328176314,1717002648656,-489.34556427,0.00031233,7]
[328176315,1717002648668,-34971.94761355,0.0003128,5]
[328176316,1717002648680,-155.28911639,0.00031389,4]
[328176317,1717002648691,-489.34556427,0.00031394,7]
[328176318,1717002648702,-2000.0,0.00031408,2]
[328176319,1717002648715,-500.0,0.00031506,4]
[328176320,1717002648726,-500.0,0.00031506,2]
[328176321,1717002648736,-748.47,0.00031506,2]
[328176322,1717002648747,-1000.0,0.00031506,2]
[328176323,1717002648758,-512.25508565,0.00031506,2]
[328176324,1717002648768,-151.0,0.00031506,2]
[328176325,1717002648780,-151.0,0.00031506,2]
[328176326,1717002648792,-262.50385,0.00031506,2]
[328176327,1717002648803,-166.860849,0.00031506,2]
[328176328,1717002648816,-276.727778,0.00031506,2]
[328176329,1717002648827,-166.860849,0.00031506,2]
[328176330,1717002648838,-276.727778,0.00031506,2]
[328176331,1717002648849,-500.0,0.00031506,4]
[328176332,1717002648860,-374.26,0.00031506,4]
[328176333,1717002648871,-500.0,0.00031506,4]
[328176334,1717002648881,-500.0,0.00031506,4]
[328176335,1717002648892,-233.514913,0.00031518,2]
[328176336,1717002648902,-233.514913,0.00031518,2]
[328176337,1717002648914,-151.0,0.00031518,2]
[328176338,1717002648925,-477.250238,0.00031518,2]
[328176339,1717002648935,-477.250238,0.00031518,2]
[328176340,1717002648946,-300.9205413,0.00031529,7]
[328176341,1717002648956,-489.34556427,0.00031538,7]
[328176342,1717002648967,-326.50885679,0.000316,4]
[328176343,1717002648977,-155.69541623,0.00031621,4]
[328176344,1717002648988,-1065.0,0.000317,2]
[328176345,1717002648999,-300.98058763,0.00031718,2]
[328176346,1717002649011,-151.0,0.00031748,7]
[328176347,1717002649023,-151.0,0.00031748,7]
[328176348,1717002649034,-500.0,0.0003178,4]
[328176349,1717002649046,-500.0,0.0003178,2]
[328176350,1717002649059,-748.47,0.0003178,2]
[328176351,1717002649071,-1008.98968812,0.0003178,2]
[328176352,1717002649083,-500.0,0.0003178,4]
[328176353,1717002649094,-386.947126,0.0003178,2]
[328176354,1717002649105,-386.947126,0.0003178,2]
[328176355,1717002649116,-500.0,0.0003178,4]
[328176356,1717002649127,-982.209705,0.0003178,2]
[328176357,1717002649138,-563.52,0.0003178,4]
[328176358,1717002649149,-982.209705,0.0003178,2]
[328176359,1717002649170,-151.0,0.0003178,2]
[328176360,1717002649187,-1138.614795,0.0003178,2]
[328176361,1717002649209,-1138.614795,0.0003178,2]
[328176362,1717002649222,-1000.0,0.00031804,2]
[328176363,1717002649236,-1000.0,0.00031821,2]
[328176364,1717002649249,-193.28861338,0.00031896,4]
[328176365,1717002649263,-350.33130404,0.00031897,4]
[328176366,1717002649279,-306.42455883,0.00031898,4]
[328176367,1717002649291,-155.18307391,0.00031898,4]
[328176368,1717002649304,-283.86669786,0.00031898,4]
[328176369,1717002649320,-199.03044847,0.00031898,4]
[328176370,1717002649332,-550.9904196,0.00031898,4]
[328176371,1717002649344,-690.60091878,0.00031898,4]
[328176372,1717002649357,-2048.78105248,0.00031898,2]
[328176373,1717002649369,-5328.42618995,0.00031898,4]
[328176374,1717002649380,-80000.0,0.00031898,4]
[328176375,1717002649392,-151.0,0.00031898,2]
[328176376,1717002649403,-151.0,0.00031898,2]
[328176377,1717002649414,-151.0,0.00031898,2]
[328176378,1717002649427,-151.0,0.00031898,2]
[328176379,1717002649439,-151.0,0.00031898,2]
[328176380,1717002649451,-151.0,0.00031898,2]
[328176381,1717002649463,-233.514913,0.00031898,2]
[328176382,1717002649474,-233.514913,0.00031898,2]
[328176383,1717002649486,-151.0,0.00031898,2]
[328176384,1717002649633,-477.250238,0.00031898,2]
[328176385,1717002649642,-477.250238,0.00031898,2]
[328176386,1717002649652,-151.0,0.00031898,2]
[328176387,1717002649661,-151.0,0.00031898,2]
[328176388,1717002649670,-166.860849,0.00031898,2]
[328176389,1717002649680,-276.727778,0.00031898,2]
[328176390,1717002649689,-166.860849,0.00031898,2]
[328176391,1717002649698,-276.727778,0.00031898,2]
[328176392,1717002649707,-151.0,0.00031898,2]
[328176393,1717002649716,-151.0,0.00031898,2]
[328176394,1717002649725,-577.57308,0.00031898,2]
[328176395,1717002649735,-577.57308,0.00031898,2]
[328176396,1717002649744,-155.605394,0.00031898,2]
[328176397,1717002649753,-253.908063,0.00031898,2]
[328176398,1717002649762,-155.605394,0.00031898,2]
[328176399,1717002649771,-365.530466,0.00031898,2]
[328176400,1717002649781,-253.908063,0.00031898,2]
[328176401,1717002649791,-659.841471,0.00031898,2]
[328176402,1717002649800,-365.530466,0.00031898,2]
[328176403,1717002649811,-659.841471,0.00031898,2]
[328176404,1717002649819,-1959.86597,0.00031898,2]
[328176405,1717002649828,-1959.86597,0.00031898,2]
[328176406,1717002649836,-792.724988,0.00031898,2]
[328176407,1717002649846,-792.724988,0.00031898,2]
[328176408,1717002649855,-151.0,0.00031898,2]
[328176409,1717002649864,-151.0,0.00031898,2]
[328176410,1717002649873,-194.537014,0.00031898,2]
[328176411,1717002649883,-151.0,0.00031898,2]
[328176412,1717002649892,-151.0,0.00031898,2]
[328176413,1717002649901,-151.0,0.00031898,2]
[328176414,1717002649910,-1682.971842,0.00031898,2]
[328176415,1717002649919,-1682.971842,0.00031898,2]
[328176416,1717002649928,-151.08854,0.00031898,2]
[328176417,1717002649937,-386.947126,0.00031898,2]
[328176418,1717002649949,-151.08854,0.00031898,2]
[328176419,1717002649959,-386.947126,0.00031898,2]
[328176420,1717002649968,-982.209705,0.00031898,2]
[328176421,1717002649976,-982.209705,0.00031898,2]
[328176422,1717002649986,-151.0,0.00031898,2]
[328176423,1717002649995,-1138.614795,0.00031898,2]
[328176424,1717002650005,-1138.614795,0.00031898,2]
[328176425,1717002650014,-5352.54981402,0.000319,4]
[328176426,1717002650024,-224.70364529,0.000319,4]
[328176427,1717002650033,-2091.43127022,0.000319,4]
[328176428,1717002650043,-782.0263146,0.000319,4]
[328176429,1717002650052,-154.99732044,0.000319,4]
[328176430,1717002650062,-282.0,0.000319,4]
[328176431,1717002650071,-199.43444088,0.00031935,7]
[328176432,1717002650080,-2000.0,0.00032,4]
[328176433,1717002650090,-449.01034019,0.00032,4]
[328176434,1717002650100,-300.0,0.00032,5]
[328176435,1717002650110,-228.164,0.00032034,2]
[328176436,1717002650120,-243.134,0.00032034,2]
[328176437,1717002650131,-497.0,0.00032034,2]
[328176438,1717002650142,-500.0,0.00032054,4]
[328176439,1717002650151,-500.0,0.00032054,2]
[328176440,1717002650162,-748.47,0.00032054,2]
[328176441,1717002650172,-368.16,0.00032054,4]
[328176442,1717002650182,-500.0,0.00032054,4]
[328176443,1717002650192,-500.0,0.00032328,4]
[328176444,1717002650202,-748.47,0.00032328,2]
[328176445,1717002650211,-151.0,0.00032328,2]
[328176446,1717002650221,-500.0,0.00032328,4]
[328176447,1717002650231,-151.0,0.00032363,2]
[328176448,1717002650240,-151.0,0.00032363,2]
[328176449,1717002650249,-166.860849,0.00032363,2]
[328176450,1717002650258,-276.727778,0.00032363,2]
[328176451,1717002650268,-166.860849,0.00032363,2]
[328176452,1717002650280,-276.727778,0.00032363,2]
[328176453,1717002650290,-151.0,0.00032363,2]
[328176454,1717002650299,-577.57308,0.00032363,2]
[328176455,1717002650310,-577.57308,0.00032363,2]
[328176456,1717002650321,-155.605394,0.00032363,2]
[328176457,1717002650330,-253.908063,0.00032363,2]
[328176458,1717002650339,-155.605394,0.00032363,2]
[328176459,1717002650349,-253.908063,0.00032363,2]
[328176460,1717002650359,-659.841471,0.00032363,2]
[328176461,1717002650369,-365.530466,0.00032363,2]
[328176462,1717002650378,-365.530466,0.00032363,2]
[328176463,1717002650387,-659.841471,0.00032363,2]
[328176464,1717002650396,-1959.86597,0.00032363,2]
[328176465,1717002650406,-1959.86597,0.00032363,2]
[328176466,1717002650415,-792.724988,0.00032363,2]
[328176467,1717002650424,-792.724988,0.00032363,2]
[328176468,1717002650434,-151.0,0.00032363,2]
[328176469,1717002650444,-151.0,0.00032363,2]
[328176470,1717002650453,-151.0,0.00032363,2]
[328176471,1717002650463,-209.328963,0.00032363,2]
[328176472,1717002650472,-1682.971842,0.00032363,2]
[328176473,1717002650481,-1682.971842,0.00032363,2]
[328176474,1717002650490,-151.08854,0.00032363,2]
[328176475,1717002650500,-386.947126,0.00032363,2]
[328176476,1717002650509,-151.08854,0.00032363,2]
[328176477,1717002650518,-386.947126,0.00032363,2]
[328176478,1717002650527,-982.209705,0.00032363,2]
[328176479,1717002650536,-982.209705,0.00032363,2]
[328176480,1717002650545,-151.0,0.00032363,2]
[328176481,1717002650554,-1138.614795,0.00032363,2]
[328176482,1717002650565,-1138.614795,0.00032363,2]
[328176483,1717002650574,-175.75673806,0.00032363,4]
[328176484,1717002650583,-155.13331037,0.00032364,4]
[328176485,1717002650592,-290.00371436,0.00032396,4]
[328176486,1717002650601,-207.12813251,0.00032396,4]
[328176487,1717002650610,-249.23784939,0.00032396,4]
[328176488,1717002650620,-284.85203127,0.00032396,4]
[328176489,1717002650629,-155.04478637,0.00032396,4]
[328176490,1717002650638,-1981.48839217,0.00032396,4]
[328176491,1717002650648,-1407.24401404,0.00032396,4]
[328176492,1717002650657,-309.37619068,0.00032396,4]
[328176493,1717002650666,-392.63371697,0.00032396,4]
[328176494,1717002650676,-309.59749848,0.00032396,4]
[328176495,1717002650685,-358.38050345,0.00032396,4]
[328176496,1717002650695,-3525.45,0.00032396,4]
[328176497,1717002650704,-281.31656163,0.00032396,4]
[328176498,1717002650713,-1339.904712,0.00032396,4]
[328176499,1717002650723,-233.514913,0.00032396,2]
[328176500,1717002650733,-233.514913,0.00032396,2]
[328176501,1717002650743,-151.0,0.00032396,2]
[328176502,1717002650752,-477.250238,0.00032396,2]
[328176503,1717002650762,-477.250238,0.00032396,2]
[328176504,1717002650771,-773.13648214,0.00032397,4]
[328176505,1717002650781,-154.96605919,0.00032398,4]
[328176506,1717002650790,-35019.95739963,0.00032398,2]
[328176507,1717002691059,1098.62540245,0.00015,2]
[328176510,1717003012711,-935.0,0.00033064,120]
[328176511,1717003012736,-928.52818483,0.00033064,30]
[328176512,1717003017441,-69066.32914926,0.000338,30]
[328176513,1717003017470,-200.0,0.00034872,120]
[328176514,1717003017495,-1930733.67085074,0.00035,30]
[328176515,1717003027340,-2000000.0,0.00035,30]
[328176516,1717003050802,-2000000.0,0.00035,30]
[328176517,1717003055282,-691952.73304644,0.00035,30]
[328176518,1717003055307,-2775.47685484,0.00035,120]
[328176519,1717003055331,-1024.07730354,0.00035,120]
[328176520,1717003055358,-10062.18975957,0.00035,30]
[328176521,1717003055383,-537.27807975,0.00035616,30]
[328176522,1717003055414,-6250.0,0.00035616,120]
[328176523,1717003055440,-1000.0,0.00036,120]
[328176524,1717003055468,-1440.0,0.00037,120]
[328176525,1717003055496,-1108.25276114,0.0003707,31]
[328176526,1717003055521,-15408.0,0.00037777,120]
[328176527,1717003055545,-2205.90472696,0.00038,120]
[328176528,1717003055569,-1000.0,0.00038,120]
[328176529,1717003055594,-42281.36395256,0.000385,60]
[328176530,1717003055618,-43300.0,0.0003888,120]
[328176531,1717003055643,-192.19542999,0.00039999,31]
[328176532,1717003055667,-295.76493177,0.00039999,31]
[328176533,1717003055693,-343.73646582,0.00039999,31]
[328176534,1717003055721,-500.0,0.00039999,31]
[328176535,1717003055744,-500.0,0.00039999,31]
[328176536,1717003055772,-500.0,0.00039999,31]
[328176537,1717003055796,-488.9693383,0.00039999,31]
[328176538,1717003055823,-500.0,0.00039999,31]
[328176539,1717003055849,-500.0,0.00039999,31]
[328176540,1717003055878,-500.0,0.00039999,31]
[328176541,1717003055908,-500.0,0.00039999,31]
[328176542,1717003055939,-500.0,0.00039999,31]